Cogmind - Beta 13 @@@ ROGUE MODE // 2024.04.04 @ 02:47:37 Player: Abkaal Result: Destroyed by as-86882 with Assembled Rifle Performance ------------- Evolutions (1) 500 Regions Visited (3) 600 Robots Destroyed (39) 195 Value Destroyed (943) 943 Prototype IDs (5) 100 Alien Tech Used (0) 0 Bonus (11) 11 TOTAL SCORE: 2349 Bonus ------- High Alert Combat Kills 11 Cogmind --------- Core Integrity 0/400 Matter 182/300 Energy 280/280 System Corruption 4% Temperature Cool (0) Movement Core (400) Ox7 Location -9/Mines Parts ------- > --- POWER (1) -------- Heavy Ion Engine > --- PROPULSION (2) --- (None) > --- UTILITY (3) ------ Disposable Heat Sink Medium Storage Unit > --- WEAPON (3) ------- Autogun Mining Claw > --- INVENTORY (10) --- Cooled Ion Engine Improved Heat Sink Peak State ------------ > --- POWER ------------ Cooled Ion Engine > --- PROPULSION ------- Light Treads Light Treads > --- UTILITY ---------- Medium Storage Unit Power Shielding Light Armor Plating > --- WEAPON ----------- Shock Rifle Beam Cannon Improved Assault Rifle > --- INVENTORY -------- Heavy Ion Engine Cooled Ion Engine Light Treads Improved Heat Sink Disposable Heat Sink Light Armor Plating Shock Rifle Heavy Assault Rifle Grenade Launcher Mining Claw [Rating: 17] Favorites ----------- Power Ion Engine Engine Ion Engine Propulsion Compact Wheel Treads Light Treads Wheel Compact Wheel Utility Power Shielding Device Disposable Heat Sink Storage Medium Storage Unit Protection Power Shielding Weapon Beam Cannon Energy Gun Medium Laser Energy Cannon Beam Cannon Ballistic Gun Assault Rifle Launcher Grenade Launcher Slashing Weapon Mining Claw Build | -11 -10 -9 -9 ------- Run | Yrd Mat Mat Min Slots Evolved 2 | . . 2 . Power . | . . . . Propulsion . | . . . . Utility 1 | . . 1 . Weapon 1 | . . 1 . Parts Attached 44 | 6 9 20 9 Power 6 | 1 1 3 1 Engine 6 | 1 1 3 1 Core . | . . . . Reactor . | . . . . Propulsion 8 | 2 1 5 . Treads 5 | . . 5 . Leg . | . . . . Wheel 3 | 2 1 . . Hover . | . . . . Flight . | . . . . Utility 13 | 1 3 7 2 Device 1 | . . . 1 Storage 3 | 1 1 1 . Processor . | . . . . Hackware . | . . . . Protection 9 | . 2 6 1 Artifact . | . . . . Weapon 17 | 2 4 5 6 Energy Gun 5 | 1 2 1 1 Energy Cannon 2 | . 1 1 . Ballistic Gun 7 | 1 1 3 2 Ballistic Cannon . | . . . . Launcher 1 | . . . 1 Special Weapon . | . . . . Impact Weapon . | . . . . Slashing Weapon 2 | . . . 2 Piercing Weapon . | . . . . Special Melee Weapon . | . . . . Unidentified Prototypes 1 | . . 1 . Parts Lost 13 | . . 1 12 Power 1 | . . . 1 Propulsion 3 | . . 1 2 Utility 3 | . . . 3 Weapon 6 | . . . 6 Highest Loss Streak 8 | . . 1 8 To Critical Strikes . | . . . . Average Slot Usage (%) 95 | . 98 98 79 Engine 12 | . 14 11 11 Treads 8 | . . 17 10 Wheel 14 | . 27 4 . Device 1 | . . . 8 Storage 12 | . 14 11 11 Protection 15 | . 13 21 9 Energy Gun 8 | . 11 5 7 Energy Cannon 8 | . 2 16 2 Ballistic Gun 13 | . 14 10 16 Naked Turns . | . . . . Heaviest Build 31 | 14 21 31 31 Greatest Support 40 | 32 32 40 40 Greatest Overweight (x) 9 | . . 1 9 Average Overweight (x) . | . . . 1 Largest Inventory Capacity 10 | 8 10 10 10 Average Capacity 9 | 7 9 10 10 Most Carried 10 | 7 10 10 10 Average Carried 8 | 3 9 9 4 Final Capacity 10 | 8 10 10 10 Final Carried 10 | 6 10 10 2 Class Distribution -------------------- 53% | Mutant 24% | Scavenger-Tank 18% | Tank Dominant Class ---------------- Mutant | -10/Materials Scavenger-Tank | -9/Materials Tank | -9/Mines Resources | -11 -10 -9 -9 ----------- Run | Yrd Mat Mat Min Matter Collected 907 | 249 233 309 116 Remotely . | . . . . Salvage Created 1659 | . 412 1125 122 Parts 83 | . 20 63 . Haulers Intercepted 4 | . 2 2 . Recyclers Shooed 1 | . . 1 . Parts Field Recycled . | . . . . Retrieved Matter . | . . . . Parts Self-Destructed . | . . . . Prevented . | . . . . Kills | -11 -10 -9 -9 ------- Run | Yrd Mat Mat Min Combat Hostiles Destroyed 35 | . 9 18 8 Guns 28 | . 8 12 8 Cannons 6 | . . 6 . Classes Destroyed 9 | . 4 3 2 Hauler 4 | . 2 2 . Recycler 4 | . . 4 . Operator 1 | . . 1 . Watcher 2 | . 1 1 . Swarmer 9 | . 3 6 . Grunt 13 | . 6 7 . Sentry 5 | . . 5 . Demolisher 1 | . . . 1 Assembled 7 | . . . 7 Best Kill Streak 9 | . 3 9 4 Combat Bots Only 4 | . 3 4 4 Max Kills in Single Turn 2 | . 1 2 1 Gunslinging . | . . . . Exploded . | . . . . Melee . | . . . . Uniques/NPCs Destroyed . | . . . . Combat | -11 -10 -9 -9 -------- Run | Yrd Mat Mat Min Hostile Shots Fired 153 | . 42 51 60 Missed 27 | . 7 13 7 Damage Taken 2517 | . 367 538 1612 Core 475 | . 69 77 329 Absorbed by Shields . | . . . . Redirected to Shielding 78 | . 16 12 50 Regen/Repaired (Parts) 69 | . 51 18 . Core Remaining (%) 86 | 100 72 . . Volleys Fired 120 | . 44 43 33 Largest 3 | . 2 3 3 Hottest 143 | . 80 143 133 Shots Fired 271 | . 88 125 58 Gun 199 | . 82 64 53 Cannon 70 | . 6 61 3 Launcher 2 | . . . 2 Special . | . . . . Kinetic 131 | . 44 43 44 Thermal 108 | . 44 61 3 Explosive 2 | . . . 2 Electromagnetic 30 | . . 21 9 Robot Hit Streak 12 | . 11 12 8 Robot Miss Streak 7 | . 3 6 7 Penetration Max . | . . . . Secondary Targets 1 | . 1 . . Max Gunslinging Chain 1 | . 1 . . Shots Hit Robots 156 | . 60 65 31 Core Hits 72 | . 21 32 19 Critical Kills . | . . . . Critical Parts Destroyed . | . . . . Critical Strikes 3 | . 2 1 . Burn 2 | . 2 . . Corrupt 1 | . . 1 . Melee Attacks . | . . . . Impact . | . . . . Slashing . | . . . . Piercing . | . . . . Sneak Attacks . | . . . . Combat Hostiles . | . . . . Follow-up Attacks . | . . . . Damage Inflicted 2465 | . 755 1207 503 Guns 1668 | . 703 557 408 Cannons 737 | . 52 650 35 Explosions 60 | . . . 60 Melee . | . . . . Ramming . | . . . . Kinetic 1025 | . 329 364 332 Thermal 1111 | . 426 650 35 Explosive 60 | . . . 60 Electromagnetic 269 | . . 193 76 Impact . | . . . . Slashing . | . . . . Piercing . | . . . . Highest Corruption 4 | . . . 4 Average Corruption 4 | . . . 4 Corruption Purged . | . . . . Corruption Blocked . | . . . . Effects 5 | . . . 5 Message Errors 1 | . . . 1 Matter Fused 1 | . . . 1 Data Loss (minor) 2 | . . . 2 Weapon Failures 1 | . . . 1 Overload Shots . | . . . . Overflow Damage 17 | . . 17 . Projectiles 4 | . . 4 . Explosions 13 | . . 13 . Melee . | . . . . Knockbacks . | . . . . Impact . | . . . . Kinetic . | . . . . Secondary . | . . . . Self-Inflicted Damage 114 | . . 114 . Shots 1 | . . 1 . Rammed . | . . . . Targets Rammed . | . . . . Kicked . | . . . . Crushed . | . . . . Highest Temperature 356 | . 185 356 132 Average Temperature 91 | . 47 129 37 Received Heat Transfer 348 | . 162 126 60 Effects 3 | . . 3 . Energy Bleed 1 | . . 1 . Interference 1 | . . 1 . Short Circuit 1 | . . 1 . Siege Activations . | . . . . Robots Corrupted . | . . . . Combat Hostiles . | . . . . Parts Fried . | . . . . Impact Corruptions . | . . . . Robots Melted 1 | . 1 . . Combat Hostiles 1 | . 1 . . Parts Melted 2 | . 1 1 . Heat Transferred 2812 | . 1369 1369 74 Parts Sabotaged . | . . . . Parts Stolen . | . . . . Parts Stripped . | . . . . Power Chain Reactions . | . . . . Alert | -11 -10 -9 -9 ------- Run | Yrd Mat Mat Min Peak Influence 405 | . 199 405 132 Initial 132 | . . 31 132 Average 127 | . 63 227 80 Maximum Alert Level 2 | . . 2 . Low Security (%) 77 | 100 100 41 100 Level 1 18 | . . 48 . Level 2 3 | . . 10 . Level 3 . | . . . . Level 4 . | . . . . Level 5 . | . . . . High Security . | . . . . Max Security . | . . . . Squads Dispatched 7 | . 2 5 . Investigation 3 | . . 3 . Extermination . | . . . . Reinforcement 4 | . 2 2 . Assault . | . . . . Garrison . | . . . . Intercept . | . . . . Searches Triggered . | . . . . Construction Impeded . | . . . . Haulers Reinforced . | . . . . Active Scanning Responses . | . . . . Cargo Convoy Interrupts . | . . . . Stealth | -11 -10 -9 -9 --------- Run | Yrd Mat Mat Min Distress Signals 6 | . 2 4 . Communications Jammed . | . . . . Distress Signals . | . . . . Times Spotted 68 | . 24 26 18 Peak Tracking Total 10 | . 5 4 10 Tactical Retreats 2 | . 1 . 1 Traps | -11 -10 -9 -9 ------- Run | Yrd Mat Mat Min Traps Triggered 2 | . . 2 . Indirectly . | . . . . Trap Hack Attempts . | . . . . Triggered . | . . . . Disarmed . | . . . . Reprogrammed . | . . . . Reused . | . . . . Traps Extracted . | . . . . Installed . | . . . . Triggered . | . . . . Machines | -11 -10 -9 -9 ---------- Run | Yrd Mat Mat Min Machines Disabled 4 | . . 4 . Max in Single Turn 2 | . . 2 . Machines Repaired . | . . . . Machines Dismantled . | . . . . Machines Sabotaged . | . . . . Overloaded Fab Kills . | . . . . Hacking | -11 -10 -9 -9 --------- Run | Yrd Mat Mat Min Machines Accessed 15 | . 8 7 . Terminals 8 | . 6 2 . Fabricators . | . . . . Repair Stations 3 | . 1 2 . Recycling Units 3 | . 1 2 . Scanalyzers 1 | . . 1 . Garrison Access . | . . . . Total Hacks 46 | . 28 18 . Successful 27 | . 18 9 . Failed 19 | . 10 9 . Catastrophic 2 | . 2 . . Database Lockouts . | . . . . Manual 4 | . 2 2 . Terminals 21 | . 16 5 . Fabricators . | . . . . Repair Stations 15 | . 11 4 . Recycling Units 4 | . 1 3 . Scanalyzers 6 | . . 6 . Garrison Access . | . . . . Terminal Hacks 9 | . 9 . . Record 2 | . 2 . . Robot Analysis 2 | . 2 . . Prototype ID Bank 2 | . 2 . . Emergency Access Points 1 | . 1 . . Alert Level 1 | . 1 . . Unreport Threat 1 | . 1 . . Fabricator Hacks . | . . . . Repair Station Hacks 10 | . 8 2 . Scan Component 5 | . 4 1 . Repair 5 | . 4 1 . Recycling Unit Hacks 3 | . 1 2 . Report Inventory 3 | . 1 2 . Scanalyzer 5 | . . 5 . Insert Component 3 | . . 3 . Analyze 2 | . . 2 . Garrison Access Hacks . | . . . . Unauthorized Hacks . | . . . . Terminals . | . . . . Fabricators . | . . . . Repair Stations . | . . . . Recycling Units . | . . . . Scanalyzers . | . . . . Garrison Access . | . . . . Data Cores Recovered . | . . . . Used . | . . . . Hacking Detections 13 | . 6 7 . Full Trace Events 2 | . . 2 . Feedback Events . | . . . . Feedback Blocked . | . . . . Robot Schematics Acquired . | . . . . Robots Built . | . . . . Authchips . | . . . . Time . | . . . . Total Robot Build Rating . | . . . . Part Schematics Acquired 2 | . . 2 . Parts Built . | . . . . Authchips . | . . . . Time . | . . . . Total Part Build Rating . | . . . . Parts Repaired 5 | . 4 1 . Time 126 | . 104 22 . Parts Recycled . | . . . . Recycled Matter . | . . . . Retrieved Matter . | . . . . Retrieved Components . | . . . . Parts Scanalyzed 2 | . . 2 . Part Schematics Acquired 2 | . . 2 . Parts Damaged 1 | . . 1 . Bothacking | -11 -10 -9 -9 ------------ Run | Yrd Mat Mat Min Used RIF Installer . | . . . . Robots Hacked . | . . . . Non-combat . | . . . . Combat . | . . . . Robot Hacks Applied . | . . . . Relay Couplers Released . | . . . . Fabnet Peak Effective % . | . . . . Robots Rewired . | . . . . Allies Hacked . | . . . . Hacks Repelled . | . . . . Allies | -11 -10 -9 -9 -------- Run | Yrd Mat Mat Min Total Allies . | . . . . Largest Group . | . . . . Highest-Rated Group . | . . . . Highest-Rated Ally . | . . . . Total Orders . | . . . . Ally Attacks . | . . . . Total Damage . | . . . . Kills . | . . . . Allies Corrupted . | . . . . Allies Melted . | . . . . Intel | -11 -10 -9 -9 ------- Run | Yrd Mat Mat Min Robot Analysis Total 2 | . 2 . . Derelict Logs Recovered . | . . . . Drone Launches . | . . . . Drone Recoveries . | . . . . Exploration | -11 -10 -9 -9 ------------- Run | Yrd Mat Mat Min Turns Passed 2436 | 61 1071 939 365 Spaces Moved 1242 | 41 658 431 112 Core 15 | 1 . . 14 Treads 430 | . . 332 98 Legs . | . . . . Wheels 797 | 40 658 99 . Hover . | . . . . Flight . | . . . . Fastest Speed 50 | 50 100 100 160 Average Speed 127 | 98 100 146 226 Slowest Speed 500 | 100 100 240 500 Overloaded Moves . | . . . . Propulsion Burnouts . | . . . . Robots Hopped . | . . . . Cave-ins Triggered . | . . . . Exploration Rate (%) 40 | 3 87 37 35 Regions Visited 3 Branch Regions 1 Pre-discovered Areas . | . . . . Known Exits Taken . | . . . . Unknown Exits Taken 3 | 1 1 1 . Scrap Searched 1 | . . . 1 Spaces Dug . | . . . . Terrain Destroyed 27 | . . 16 11 Melee . | . . . . Projectile . | . . . . AOE 27 | . . 16 11 Terrain Rammed . | . . . . Walls Destroyed . | . . . . Machines Disabled . | . . . . Actions | -11 -10 -9 -9 --------- Run | Yrd Mat Mat Min Total 1884 | 59 988 660 177 Wait 398 | 6 249 120 23 Move 1239 | 40 657 430 112 Hop . | . . . . Pick Up 40 | 7 15 18 . Fast Attach 15 | 5 5 5 . Attach 14 | 1 1 4 8 Detach . | . . . . Swap 15 | . 3 11 1 Drop 43 | . 14 29 . Fire 120 | . 44 43 33 Melee . | . . . . Ram . | . . . . Kick . | . . . . Crush . | . . . . Escape Stasis . | . . . . Rewire . | . . . . Trap . | . . . . Miscellaneous . | . . . . Route ------- -11/Scrapyard -10/Materials (discovered 4 exits: *Mat x3 / [*Min]) -9/Materials (discovered 2 exits: [*Mat] / [*Min]) -9/Mines History --------- Turn | Location | Event 24 | -11/Scrapyard | Discovered new exit (range 15) 62 | -11/Scrapyard | Entered Materials 278 | -10/Materials | Discovered new exit (range 11) 315 | -10/Materials | Build established: Mutant 329 | -10/Materials | Discovered new exit (range 12) 584 | -10/Materials | Discovered new exit (range 14) 677 | -10/Materials | Repaired Com. Wheel 705 | -10/Materials | Repaired Med. Laser 732 | -10/Materials | Repaired Power Shielding 760 | -10/Materials | Repaired Flight Unit 1122 | -10/Materials | Discovered new exit (range 12) 1133 | -10/Materials | Entered another Materials area 1133 | -9/Materials | Evolved 2 slots: Utility x1, Weapon x1 1403 | -9/Materials | Repaired Broken Hvy. Assault Rifle 1687 | -9/Materials | Discovered new exit (range 8) 1716 | -9/Materials | Build established: Scavenger-Tank 2029 | -9/Materials | Discovered new exit (range 6) 2072 | -9/Materials | Entered Mines 2115 | -9/Mines | Assembled infested the area 2171 | -9/Mines | Core integrity fell below 50% 2225 | -9/Mines | Lost 8 parts (1p1n2u4w) 2384 | -9/Mines | Core integrity fell below 20% 2437 | -9/Mines | Destroyed by as-86882 with Assembled Rifle Last Messages --------------- 02349_ System corrupted by crushing effect (+4). 02349_ Knocked back. 02350_ System corrupted: Matter fused (-5). 02357_ System corrupted: Autogun jammed. 02357_ as-98448 destroyed. 02360_ Acquired 19 matter. 02365_ System corrupted: Component data lost. 02381_ Hvy. Assault Rifle destroyed. 02382_ System corrupted: Component data lost. 02385_ Knocked back. 02387_ Destroyed Asb. Hover Unit. 02389_ as-60646 destroyed. 02390_ Knocked back. 02394_ as-50758 destroyed. 02400_ T-07 Excavator destroyed. 02401_ as-55808 destroyed. 02405_ as-84392 destroyed. 02411_ Acquired 15 matter. 02415_ Acquired 34 matter. 02422_ Z F 6WIZ4P&65FTYCWZHT/P Map ----- +----------------------------------------------------+ | ????????????????????## """" #??? #????? | | ??????????????????### #### ###??? | | ?????????????????## ## ##?? | | ?????????????????# ######????? ##? | | ?????????????????# ##??????????? #? | | ????????????????## ####???????????? " #? | | ???????????????## ######???????#####"%" #? | | ???????????????# #???????# [ " #? | | ???????????????# #???????# * #?? | | ???????????????# ### #???????# ### ####?? | | ???????????????## #?# #???????# ### ####??? | | ????????????????## #?# #???????# #??? | | ?????????????????# #?# ##??????# # #?#? | | ?????????????????# #?# ######## # #!#? | | ????????????????? ### ## %## # #? | | ????????????????? ##?# # % #? | | ????????????????# ??## ####### ## # # ###? | | ????????????????# ##????# #??? | | ????????????????# ##### * ##??## # ###??? | | ???????????????? ????# =% ### #### | | ?????????????##? ?????# ! !% # # ] | | ???????????### ? ????## % | | | ????????????=%* ?????# ## ## | | ????????????? ????## ## ##? | | ?????????????# ???## # # #?? | | ?????????????# ???# @! # ## # # #?? | | ?????????????# #?## !%## # # ###?? | | ?????????????# ## *## #?? | | ?????????????# #### # # # ###?? | | ?????????????# a % ## # # ##### ###??? | | ?????????????# ## # # ##???? | | ?????????????## ### ##????? | | ??????????????## ### ###?????? | | ??????????####### #?## ######???????? | | ??????????# #### ##??# #????????????? | | ??????????# ##???###???# #????????????? | | ??????????# ########??????????# #????????????? | | ???######## ####??????????????# #????????????? | | ???# #??????????????# ?????????????? | | ???# #??????????????# ?????????????? | | ???# #??????????????? ?????????????? | | ???# #??????????????? ?????????????? | | ???##############?????????????????????????????? | | ??????????????????????????????????????????????? | | ??????????????????????????????????????????????? | | ??????????????????????????????????????????????? | | ??????????????????????????????????????????????? | | ??????????????????????????????????????????????? | | ??????????????????????????????????????????????? | | ??????????????????????????????????????????????? | +----------------------------------------------------+ Best States ------------- Heat Dissipation 28 Coolant Potential 50 Energy Generation 14 Energy Capacity 280 Matter Stores 300 Matter Capacity 300 Sight Range 16 Terrain Scan Density 10 Armor Coverage 150 Power Shielding 33 Evasion (%) 40 Recoil Reduction 2 Item Schematics ----------------- Grenade Launcher | -9/Materials | Scanalyzed Lgt. Treads | -9/Materials | Scanalyzed Robot Schematics ------------------ None Fabricated ------------ Nothing Alien Tech Used ----------------- None Achievements -------------- None Challenges ------------ None Game ------ Seed ResetParticleGuard Manual? 0 Play Time 00:40:12 Cumulative 14.4 hours Start 2024.04.04 @ 00:45:32 End 2024.04.04 @ 02:47:37 Sessions 2 Manual Loads 0 Difficulty Rogue Special Mode None Game No. 11 Rogue 11 Adventurer 0 Explorer 0 Win Type - Total 0 Types 0/0/0/0/0/0/0/0/0 Lore% 17 Gallery% 22 Achievement% 15 Wizard Run 0 Options --------- Layout 2 ASCII 0 Keyboard 1 Movement Numpad Keybinds 0 Fullscreen 1 Font 24/Smallcaps Map View 50x44 Zoom Use 0% Tactical HUD 1 Map Filters NONE Filters NONE Steam 1 RUN: d9c93aa7-36e6-4cf1-927b-9139d91b2c88